Cogmind - Beta 13 @@@ ROGUE MODE // 2024.04.18 @ 22:57:00 Player: Exceptionally Mediocre Result: Destroyed by P-70 Sage with Tesla Rifle Performance ------------- Evolutions (5) 2500 Regions Visited (8) 1600 Robots Destroyed (128) 640 Value Destroyed (4593) 4593 Prototype IDs (13) 260 Alien Tech Used (0) 0 Bonus (-14) -14 TOTAL SCORE: 9579 Bonus ------- High Alert Combat Kills 58 Friendly Fire -72 Cogmind --------- Core Integrity 0/1000 Matter 95/300 Energy 530/530 System Corruption 12% Temperature Cool (0) Movement Core (550) Ox10 Location -5/Factory Parts ------- > --- POWER (2) -------- Neutrino Core Neutrino Core > --- PROPULSION (5) --- (None) > --- UTILITY (7) ------ Hacking Suite > --- WEAPON (3) ------- Falx > --- INVENTORY (5) ---- Neutrino Core Biometal Leg Improved Particle Charger Compact HERF Cannon Spear Peak State ------------ > --- POWER ------------ Micro Nuclear Core Micro Fission Core > --- PROPULSION ------- Flightbrick > --- UTILITY ---------- Huge Storage Unit Improved Targeting Computer Core Analyzer Improved Core Shielding Hardened Heavy Armor Plating Makeshift System Shield Improved Recalibrator Rainbow Chip > --- WEAPON ----------- Heavy Particle Gun Barrage Gun Gauss Cannon Powered Hammer > --- INVENTORY -------- Micro Nuclear Core Micro Nuclear Core Micro Nuclear Core Improved Cooling System Improved Cooling System Medium Matter Pod Improved Targeting Computer Matter Filter Particle Charger Advanced ECM Suite Core Shielding Power Shielding Weapon Shielding Medium Reactive Plating Medium Reactive Plating Improved Shield Generator Hacking Suite System Shield Makeshift System Restoration Module Heavy Ion Cannon Assault Cannon Missile Launcher Heavy Rocket Launcher Remote Datajack Chainsword [Rating: 112] Favorites ----------- Power Micro Nuclear Core Engine Ion Engine Power Core Micro Nuclear Core Propulsion Light Treads Treads Light Treads Leg Carbon-fiber Leg Hover Unit Gyrokinetic Inverter Flight Unit Flightbrick Utility Huge Storage Unit Device Improved Recalibrator Storage Huge Storage Unit Processor Improved Targeting Computer Hackware Makeshift System Shield Protection Core Shielding Weapon Barrage Gun Energy Gun Heavy Particle Gun Energy Cannon Subdweller Beam Cannon Ballistic Gun Barrage Gun Ballistic Cannon Gauss Cannon Launcher Subdweller Shrapnel Launcher Special Weapon Mining Laser Impact Weapon Powered Hammer Slashing Weapon Falx Build | -11 -10 -10 -8 -7 -6 -5 -5 -5 ------- Run | Yrd Mat Sub Mat Fac Fac Fac Was Fac Slots Evolved 10 | . . . 4 2 2 2 . . Power 1 | . . . . . . 1 . . Propulsion 3 | . . . 2 . . 1 . . Utility 5 | . . . 2 1 2 . . . Weapon 1 | . . . . 1 . . . . Parts Attached 131 | 6 9 22 13 25 24 19 . 13 Power 21 | 1 . 3 3 6 1 4 . 3 Engine 7 | 1 . 3 2 . . 1 . . Core 14 | . . . 1 6 1 3 . 3 Reactor . | . . . . . . . . . Propulsion 27 | 2 3 4 4 2 5 5 . 2 Treads 14 | 2 3 4 4 1 . . . . Leg 10 | . . . . . 5 3 . 2 Wheel . | . . . . . . . . . Hover 2 | . . . . . . 2 . . Flight 1 | . . . . 1 . . . . Utility 34 | 1 3 1 3 10 10 3 . 3 Device 13 | . 1 . 1 3 4 2 . 2 Storage 4 | 1 1 . . . 2 . . . Processor 4 | . . . 1 3 . . . . Hackware 2 | . . . . 1 1 . . . Protection 11 | . 1 1 1 3 3 1 . 1 Artifact . | . . . . . . . . . Weapon 49 | 2 3 14 3 7 8 7 . 5 Energy Gun 11 | 1 1 . 1 2 . 2 . 4 Energy Cannon 7 | . . 6 . . 1 . . . Ballistic Gun 8 | 1 2 . 1 1 2 1 . . Ballistic Cannon 5 | . . . . 2 3 . . . Launcher 8 | . . 3 1 . 2 2 . . Special Weapon 5 | . . 5 . . . . . . Impact Weapon 2 | . . . . 2 . . . . Slashing Weapon 3 | . . . . . . 2 . 1 Piercing Weapon . | . . . . . . . . . Special Melee Weapon . | . . . . . . . . . Unidentified Prototypes 3 | . . . 2 1 . . . . Parts Lost 57 | . 2 2 1 3 15 20 1 13 Power 7 | . . . . . 2 3 1 1 Propulsion 12 | . . 1 . 1 1 6 . 3 Utility 18 | . 1 . . 1 6 6 . 4 Weapon 20 | . 1 1 1 1 6 5 . 5 Highest Loss Streak 18 | . 2 1 1 1 8 18 1 9 To Critical Strikes . | . . . . . . . . . Average Slot Usage (%) 88 | . 92 99 97 80 78 93 26 26 Engine 7 | . 14 14 8 . . . 1 . Core 4 | . . . . 10 7 9 . 3 Treads 16 | . 28 27 34 3 . . . . Leg 2 | . . . . . 2 26 . 1 Flight 1 | . . . . 5 4 . . . Device 4 | . 7 . 8 5 10 9 . 1 Storage 9 | . 14 14 9 5 5 4 . . Processor 7 | . . . 8 16 15 10 5 1 Hackware 2 | . . . . 4 3 5 5 5 Protection 8 | . . 14 9 8 6 5 . 1 Energy Gun 4 | . 13 . 2 6 3 4 . 4 Energy Cannon 4 | . . 13 6 . 2 . . . Ballistic Gun 5 | . 14 . 1 7 4 . . . Ballistic Cannon 1 | . . . . 1 4 9 . . Launcher 3 | . . 11 7 . . . . . Impact Weapon 1 | . . . . 3 4 . . . Naked Turns . | . . . . . . . . . Heaviest Build 135 | 12 88 102 107 131 133 135 19 32 Greatest Support 85 | 40 40 40 80 24 70 85 22 15 Greatest Overweight (x) 10 | 3 2 2 1 5 8 1 . 10 Average Overweight (x) 2 | . 1 2 1 4 4 . . 1 Largest Inventory Capacity 25 | 8 25 25 25 25 25 25 5 5 Average Capacity 24 | 7 24 25 25 25 24 23 5 5 Most Carried 25 | 6 25 25 25 25 25 25 5 5 Average Carried 21 | 2 13 24 24 24 23 22 4 4 Final Capacity 25 | 8 25 25 25 25 25 5 5 5 Final Carried 25 | 6 24 24 25 25 25 5 5 5 Class Distribution -------------------- 60% | Mutant 15% | Bomber 15% | Gunner 5% | Scavenger-Gunner Dominant Class ---------------- Mutant | -10/Materials Mutant | -10/Subcaves Mutant | -8/Materials Bomber | -7/Factory Gunner | -6/Factory Scavenger-Gunner | -5/Factory Mutant | -5/Waste Mutant | -5/Factory Resources | -11 -10 -10 -8 -7 -6 -5 -5 -5 ----------- Run | Yrd Mat Sub Mat Fac Fac Fac Was Fac Matter Collected 2997 | 270 255 520 166 1056 387 273 . 70 Remotely . | . . . . . . . . . Salvage Created 4593 | 116 615 592 336 1251 958 437 . 288 Parts 271 | 5 38 38 19 78 52 27 . 14 Haulers Intercepted 2 | . 2 . . . . . . . Recyclers Shooed 3 | . 2 . . . 1 . . . Parts Field Recycled . | . . . . . . . . . Retrieved Matter . | . . . . . . . . . Parts Self-Destructed 3 | . . 3 . . . . . . Prevented . | . . . . . . . . . Kills | -11 -10 -10 -8 -7 -6 -5 -5 -5 ------- Run | Yrd Mat Sub Mat Fac Fac Fac Was Fac Combat Hostiles Destroyed 91 | . 8 18 7 20 17 13 . 8 Guns 32 | . 8 . 3 15 4 1 . 1 Cannons 20 | . . 6 1 4 9 . . . AOE 36 | . . 11 3 . 3 12 . 7 Classes Destroyed 15 | 3 6 1 2 3 . . . . Worker 12 | 1 2 . . 3 2 4 . . Builder 10 | . 1 . 2 3 2 2 . . Tunneler 2 | 1 1 . . . . . . . Hauler 2 | . 2 . . . . . . . Recycler 5 | 1 1 . . 2 1 . . . Mechanic 1 | . . . . 1 . . . . Operator 2 | . 1 . . 1 . . . . Watcher 3 | . 2 . 1 . . . . . Swarmer 18 | . 3 . . 4 . 7 . 4 Grunt 31 | . 5 . 4 7 10 2 . 3 Duelist 1 | . . . 1 . . . . . Sentry 6 | . . . 2 2 . 1 . 1 Hunter 5 | . . . . 1 3 1 . . Programmer 12 | . . . . 6 4 2 . . Subdweller 18 | . . 18 . . . . . . Best Kill Streak 16 | 2 3 4 8 3 5 16 . 7 Combat Bots Only 13 | . 3 4 6 3 3 13 . 7 Max Kills in Single Turn 7 | 1 1 2 2 2 2 7 . 7 Gunslinging . | . . . . . . . . . Exploded 7 | . . 2 1 . 2 5 . 7 Melee . | . . . . . . . . . Uniques/NPCs Destroyed . | . . . . . . . . . Combat | -11 -10 -10 -8 -7 -6 -5 -5 -5 -------- Run | Yrd Mat Sub Mat Fac Fac Fac Was Fac Hostile Shots Fired 833 | . 66 43 31 244 214 116 4 115 Missed 238 | . 18 12 10 76 60 34 3 25 Damage Taken 10032 | . 597 841 335 1676 2932 1837 48 1766 Core 1546 | . 85 111 38 88 205 265 . 754 Absorbed by Shields 28 | . . . . . 28 . . . Redirected to Shielding 147 | . . 21 8 14 81 23 . . Ignored by Resistances 237 | . . . . 237 . . . . Core Remaining (%) 75 | 100 . 21 93 87 75 . . . Volleys Fired 361 | 10 83 79 27 75 59 23 . 5 Largest 4 | 2 2 2 2 4 3 3 . 2 Hottest 194 | 60 60 120 83 166 157 194 . 170 Shots Fired 709 | 20 161 96 33 212 132 48 . 7 Gun 467 | 20 161 2 16 188 52 21 . 7 Cannon 166 | . . 36 11 24 74 21 . . Launcher 39 | . . 21 6 . 6 6 . . Special 37 | . . 37 . . . . . . Kinetic 350 | 10 85 23 12 124 71 25 . . Thermal 329 | 10 76 73 21 70 55 17 . 7 Explosive 12 | . . . . . 6 6 . . Electromagnetic 18 | . . . . 18 . . . . Robot Hit Streak 13 | 13 9 10 4 11 7 7 . 6 Robot Miss Streak 6 | 1 5 2 4 6 6 3 . 1 Penetration Max 1 | . . . . . 1 1 . . Secondary Targets 4 | . 1 . 1 2 . . . . Max Gunslinging Chain 1 | . 1 . 1 1 . . . . Shots Hit Robots 384 | 15 92 40 17 113 73 28 . 6 Core Hits 241 | 6 38 27 17 52 45 47 . 9 Critical Kills 2 | . . 1 . . 1 . . . Critical Parts Destroyed 1 | . 1 . . . . . . . Critical Strikes 6 | . 1 1 1 2 1 . . . Burn 3 | . . . 1 2 . . . . Meltdown 2 | . . 1 . . 1 . . . Destroy 1 | . 1 . . . . . . . Melee Attacks 9 | . . . . 5 2 . . 2 Impact 7 | . . . . 5 2 . . . Slashing 2 | . . . . . . . . 2 Piercing . | . . . . . . . . . Sneak Attacks . | . . . . . . . . . Combat Hostiles . | . . . . . . . . . Follow-up Attacks . | . . . . . . . . . Damage Inflicted 11629 | 141 873 1936 930 2255 2403 2189 . 902 Guns 4235 | 141 873 17 206 1999 630 231 . 138 Cannons 2128 | . . 552 107 200 922 347 . . Explosions 5199 | . . 1367 617 . 851 1600 . 764 Melee 56 | . . . . 56 . . . . Ramming 11 | . . . . . . 11 . . Kinetic 5049 | 52 425 1384 676 1244 843 425 . . Thermal 3895 | 89 448 552 254 788 709 153 . 902 Explosive 2423 | . . . . . 823 1600 . . Electromagnetic 195 | . . . . 167 28 . . . Impact 56 | . . . . 56 . . . . Slashing . | . . . . . . . . . Piercing . | . . . . . . . . . Highest Corruption 12 | . . . 2 3 2 . 9 12 Average Corruption 2 | . . . 1 1 1 . 9 9 Corruption Purged 6 | . . . 2 3 1 . . . Corruption Blocked . | . . . . . . . . . Effects 44 | . . . 6 21 5 . 2 10 Message Errors 14 | . . . 1 7 1 . 1 4 Matter Fused 8 | . . . 2 5 . . . 1 Heat Flow Errors 6 | . . . 1 3 . . . 2 Energy Discharges 8 | . . . 2 2 1 . . 3 Parts Fused 1 | . . . . 1 . . . . Data Loss (minor) 5 | . . . . 3 2 . . . Misfires 1 | . . . . . 1 . . . Alerts 1 | . . . . . . . 1 . Overload Shots . | . . . . . . . . . Overflow Damage 135 | . . 7 23 36 11 15 . 43 Projectiles 20 | . . . . 5 9 6 . . Explosions 84 | . . 7 23 . 2 9 . 43 Melee 31 | . . . . 31 . . . . Knockbacks 7 | . . . . . 2 5 . . Impact . | . . . . . . . . . Kinetic 6 | . . . . . 2 4 . . Secondary 1 | . . . . . . 1 . . Self-Inflicted Damage 449 | . 78 51 25 . 164 24 . 107 Shots 10 | . 1 3 1 . 3 1 . 1 Rammed . | . . . . . . . . . Targets Rammed 2 | . . . . . . 2 . . Kicked 2 | . . . . . . 2 . . Crushed . | . . . . . . . . . Highest Temperature 522 | 20 76 24 188 424 467 522 . 126 Average Temperature 107 | 13 23 13 42 125 135 159 . 51 Received Heat Transfer 2463 | . 225 132 162 390 816 171 . 567 Effects 26 | . . . . 8 14 4 . . Shutdowns 7 | . . . . 2 2 3 . . Energy Bleed 2 | . . . . 2 . . . . Interference 12 | . . . . 4 8 . . . Matter Decay 1 | . . . . . 1 . . . Short Circuit 1 | . . . . . . 1 . . Damage (minor) 1 | . . . . . 1 . . . Damage (major) 2 | . . . . . 2 . . . Siege Activations . | . . . . . . . . . Robots Corrupted . | . . . . . . . . . Combat Hostiles . | . . . . . . . . . Parts Fried 2 | . . . . 2 . . . . Impact Corruptions 2 | . . . . 2 . . . . Robots Melted 2 | . . 1 . . 1 . . . Combat Hostiles 2 | . . 1 . . 1 . . . Parts Melted 5 | . . 2 1 2 . . . . Heat Transferred 6353 | 200 1050 962 518 1591 962 296 . 774 Parts Sabotaged . | . . . . . . . . . Parts Stolen . | . . . . . . . . . Parts Stripped . | . . . . . . . . . Power Chain Reactions . | . . . . . . . . . Alert | -11 -10 -10 -8 -7 -6 -5 -5 -5 ------- Run | Yrd Mat Sub Mat Fac Fac Fac Was Fac Peak Influence 446 | 15 101 . 295 446 439 315 127 341 Initial 214 | . 9 . . 133 214 214 92 88 Average 121 | 4 39 . 75 155 173 129 111 259 Maximum Alert Level 2 | . . . 1 2 2 1 . 1 Low Security (%) 72 | 100 100 . 84 67 53 50 100 20 Level 1 23 | . . . 15 25 37 49 . 79 Level 2 4 | . . . . 7 9 . . . Level 3 . | . . . . . . . . . Level 4 . | . . . . . . . . . Level 5 . | . . . . . . . . . High Security . | . . . . . . . . . Max Security . | . . . . . . . . . Squads Dispatched 27 | . 1 . 4 7 9 5 . 1 Investigation 1 | . . . . . . . . 1 Extermination 8 | . . . . 5 3 . . . Reinforcement 14 | . 1 . 4 2 5 2 . . Assault . | . . . . . . . . . Garrison 4 | . . . . . 1 3 . . Intercept . | . . . . . . . . . Searches Triggered . | . . . . . . . . . Construction Impeded 2 | . . . . . 1 1 . . Haulers Reinforced 1 | . . . . . 1 . . . Active Scanning Responses . | . . . . . . . . . Cargo Convoy Interrupts . | . . . . . . . . . Stealth | -11 -10 -10 -8 -7 -6 -5 -5 -5 --------- Run | Yrd Mat Sub Mat Fac Fac Fac Was Fac Distress Signals 7 | . . . 6 . 1 . . . Communications Jammed . | . . . . . . . . . Distress Signals . | . . . . . . . . . Times Spotted 168 | . 31 18 14 33 19 31 6 16 Peak Tracking Total 11 | . 4 3 4 4 3 11 6 9 Tactical Retreats 8 | . . . . 4 . 1 . 3 Traps | -11 -10 -10 -8 -7 -6 -5 -5 -5 ------- Run | Yrd Mat Sub Mat Fac Fac Fac Was Fac Traps Triggered 9 | . . 2 . 5 . 1 . 1 Indirectly . | . . . . . . . . . Trap Hack Attempts . | . . . . . . . . . Triggered . | . . . . . . . . . Disarmed 12 | . 12 . . . . . . . Reprogrammed . | . . . . . . . . . Reused . | . . . . . . . . . Traps Extracted . | . . . . . . . . . Installed . | . . . . . . . . . Triggered . | . . . . . . . . . Machines | -11 -10 -10 -8 -7 -6 -5 -5 -5 ---------- Run | Yrd Mat Sub Mat Fac Fac Fac Was Fac Machines Disabled 28 | . 3 1 5 2 14 2 . 1 Max in Single Turn 5 | . 3 1 2 1 5 1 . 1 Garrison Access 2 | . . . . 1 . 1 . . Machines Repaired . | . . . . . . . . . Machines Dismantled . | . . . . . . . . . Machines Sabotaged . | . . . . . . . . . Overloaded Fab Kills . | . . . . . . . . . Hacking | -11 -10 -10 -8 -7 -6 -5 -5 -5 --------- Run | Yrd Mat Sub Mat Fac Fac Fac Was Fac Machines Accessed 18 | . 6 2 2 6 . 2 . . Terminals 10 | . 5 . 2 2 . 1 . . Fabricators . | . . . . . . . . . Repair Stations . | . . . . . . . . . Recycling Units 3 | . 1 . . 2 . . . . Scanalyzers 1 | . . . . 1 . . . . Garrison Access 2 | . . . . 1 . 1 . . Total Hacks 41 | . 16 4 4 15 . 2 . . Successful 26 | . 11 4 1 9 . 1 . . Failed 15 | . 5 . 3 6 . 1 . . Catastrophic 3 | . . . 1 1 . 1 . . Database Lockouts . | . . . . . . . . . Manual 17 | . 11 . 4 1 . 1 . . Terminals 22 | . 15 . 4 2 . 1 . . Fabricators . | . . . . . . . . . Repair Stations . | . . . . . . . . . Recycling Units 5 | . 1 . . 4 . . . . Scanalyzers 6 | . . . . 6 . . . . Garrison Access 4 | . . . . 3 . 1 . . Terminal Hacks 10 | . 5 4 . 1 . . . . Record 3 | . . 3 . . . . . . Open DSF 1 | . . . . 1 . . . . Locate Traps 2 | . 2 . . . . . . . Disarm Traps 2 | . 2 . . . . . . . Recall Reinforcements 1 | . 1 . . . . . . . Derelict Proto ID Bank 1 | . . 1 . . . . . . Fabricator Hacks . | . . . . . . . . . Repair Station Hacks . | . . . . . . . . . Recycling Unit Hacks 3 | . 1 . . 2 . . . . Retrieve Components 3 | . 1 . . 2 . . . . Scanalyzer 5 | . . . . 5 . . . . Insert Component 2 | . . . . 2 . . . . Analyze 3 | . . . . 3 . . . . Garrison Access Hacks 2 | . . . . 1 . 1 . . Seal Access 2 | . . . . 1 . 1 . . Unauthorized Hacks 6 | . 5 . 1 . . . . . Terminals 6 | . 5 . 1 . . . . . Botnet 6 | . 5 . 1 . . . . . Fabricators . | . . . . . . . . . Repair Stations . | . . . . . . . . . Recycling Units . | . . . . . . . . . Scanalyzers . | . . . . . . . . . Garrison Access . | . . . . . . . . . Data Cores Recovered . | . . . . . . . . . Used . | . . . . . . . . . Hacking Detections 10 | . 4 . 2 3 . 1 . . Full Trace Events 1 | . . . 1 . . . . . Feedback Events . | . . . . . . . . . Feedback Blocked . | . . . . . . . . . Robot Schematics Acquired . | . . . . . . . . . Robots Built . | . . . . . . . . . Authchips . | . . . . . . . . . Time . | . . . . . . . . . Total Robot Build Rating . | . . . . . . . . . Part Schematics Acquired 2 | . . . . 2 . . . . Parts Built . | . . . . . . . . . Authchips . | . . . . . . . . . Time . | . . . . . . . . . Total Part Build Rating . | . . . . . . . . . Parts Repaired . | . . . . . . . . . Time . | . . . . . . . . . Parts Recycled . | . . . . . . . . . Recycled Matter . | . . . . . . . . . Retrieved Matter . | . . . . . . . . . Retrieved Components 11 | . . . . 11 . . . . Parts Scanalyzed 2 | . . . . 2 . . . . Part Schematics Acquired 2 | . . . . 2 . . . . Parts Damaged . | . . . . . . . . . Bothacking | -11 -10 -10 -8 -7 -6 -5 -5 -5 ------------ Run | Yrd Mat Sub Mat Fac Fac Fac Was Fac Used RIF Installer . | . . . . . . . . . Robots Hacked . | . . . . . . . . . Non-combat . | . . . . . . . . . Combat . | . . . . . . . . . Robot Hacks Applied . | . . . . . . . . . Relay Couplers Released 3 | . . . . 3 . . . . Programmers 3 | . . . . 3 . . . . Fabnet Peak Effective % . | . . . . . . . . . Robots Rewired . | . . . . . . . . . Allies Hacked . | . . . . . . . . . Hacks Repelled . | . . . . . . . . . Allies | -11 -10 -10 -8 -7 -6 -5 -5 -5 -------- Run | Yrd Mat Sub Mat Fac Fac Fac Was Fac Total Allies . | . . . . . . . . . Largest Group . | . . . . . . . . . Highest-Rated Group . | . . . . . . . . . Highest-Rated Ally . | . . . . . . . . . Total Orders . | . . . . . . . . . Ally Attacks . | . . . . . . . . . Total Damage . | . . . . . . . . . Kills . | . . . . . . . . . Allies Corrupted . | . . . . . . . . . Allies Melted . | . . . . . . . . . Intel | -11 -10 -10 -8 -7 -6 -5 -5 -5 ------- Run | Yrd Mat Sub Mat Fac Fac Fac Was Fac Robot Analysis Total . | . . . . . . . . . Derelict Logs Recovered 1 | . . 1 . . . . . . Drone Launches . | . . . . . . . . . Drone Recoveries . | . . . . . . . . . Exploration | -11 -10 -10 -8 -7 -6 -5 -5 -5 ------------- Run | Yrd Mat Sub Mat Fac Fac Fac Was Fac Turns Passed 14012 | 133 2390 4343 698 3677 1483 934 110 244 Spaces Moved 4864 | 57 664 1193 245 1391 523 487 148 156 Core 91 | 13 . . . . 1 . . 77 Treads 2146 | 44 664 1193 245 . . . . . Legs 512 | . . . . . 64 413 . 35 Wheels . | . . . . . . . . . Hover 266 | . . . . . . 74 148 44 Flight 1849 | . . . . 1391 458 . . . Fastest Speed 50 | 50 160 320 246 200 120 66 66 50 Average Speed 257 | 159 316 337 246 240 236 169 69 133 Slowest Speed 550 | 200 320 340 247 260 450 190 70 550 Overloaded Moves . | . . . . . . . . . Propulsion Burnouts . | . . . . . . . . . Robots Hopped . | . . . . . . . . . Cave-ins Triggered . | . . . . . . . . . Exploration Rate (%) 36 | 5 77 56 36 37 16 16 77 8 Regions Visited 8 Branch Regions 1 Pre-discovered Areas 1 | . . 1 . . . . . . Known Exits Taken . | . . . . . . . . . Unknown Exits Taken 6 | 1 1 1 1 1 1 . . . Scrap Searched 15 | . . 15 . . . . . . Spaces Dug 14 | . . . . 2 2 10 . . Terrain Destroyed 464 | . 15 232 78 13 69 30 . 27 Melee 4 | . . . . 2 2 . . . Projectile 28 | . . . 5 11 8 4 . . AOE 432 | . 15 232 73 . 59 26 . 27 Terrain Rammed . | . . . . . . . . . Walls Destroyed . | . . . . . . . . . Machines Disabled . | . . . . . . . . . Actions | -11 -10 -10 -8 -7 -6 -5 -5 -5 --------- Run | Yrd Mat Sub Mat Fac Fac Fac Was Fac Total 5672 | 78 808 1357 317 1576 643 557 157 179 Wait 60 | . 26 5 . 18 4 7 . . Move 4857 | 56 663 1192 244 1390 522 487 147 156 Hop . | . . . . . . . . . Pick Up 152 | 6 23 28 17 32 29 9 5 3 Fast Attach 37 | 6 1 . 1 9 6 4 . 10 Attach 46 | . 3 2 5 10 13 10 . 3 Detach 7 | . 1 . 1 2 1 2 . . Swap 48 | . 5 20 7 6 5 5 . . Drop 93 | . 3 31 15 29 2 8 5 . Fire 361 | 10 83 79 27 75 59 23 . 5 Melee 9 | . . . . 5 2 . . 2 Ram . | . . . . . . . . . Kick 2 | . . . . . . 2 . . Crush . | . . . . . . . . . Escape Stasis . | . . . . . . . . . Rewire . | . . . . . . . . . Trap . | . . . . . . . . . Miscellaneous . | . . . . . . . . . Route ------- -11/Scrapyard -10/Materials (discovered 4 exits: [*Mat x2] / [*Min] / *Sub) -10/Subcaves -8/Materials (discovered 2 exits: *Fac / [*Sto]) -7/Factory -6/Factory -5/Factory -5/Waste -5/Factory History --------- Turn | Location | Event 25 | -11/Scrapyard | Discovered new exit (range 15) 134 | -11/Scrapyard | Entered Materials 310 | -10/Materials | Build established: Mutant 703 | -10/Materials | Discovered new exit (range 13) 923 | -10/Materials | Discovered new exit (range 14) 2302 | -10/Materials | Discovered new exit (range 15) 2491 | -10/Materials | Discovered new exit (range 11) 2524 | -10/Materials | Entered Subcaves 2610 | -10/Subcaves | Learned location of Zion (-6) 2610 | -10/Subcaves | Met a Zionite searching for "candidates" 2669 | -10/Subcaves | Discovered new exit (range 14) 2873 | -10/Subcaves | Learned Materials security intel 3424 | -10/Subcaves | A Subdweller sparked back to life 3424 | -10/Subcaves | A Subdweller sparked back to life 3424 | -10/Subcaves | A Subdweller sparked back to life 3435 | -10/Subcaves | Core integrity fell below 50% 3543 | -10/Subcaves | A swath of the cavern ceiling suddenly collapsed 4615 | -10/Subcaves | Visited 4L-MR0's lab 4647 | -10/Subcaves | Found Rainbow Chip 4978 | -10/Subcaves | Shifting Twisted Machinery released Riot Gun 5110 | -10/Subcaves | Shifting Twisted Machinery released Sub. Laser 5166 | -10/Subcaves | Visited Clippyterm 5176 | -10/Subcaves | Learned Factory stockpile data 6083 | -10/Subcaves | Found Flightbrick 6193 | -10/Subcaves | Shifting Twisted Machinery released Battle Cannon 6667 | -10/Subcaves | Ambushed by Subdweller buried in earth 6712 | -10/Subcaves | Ambushed by Subdweller buried in earth 6867 | -10/Subcaves | Entered Materials 6867 | -8/Materials | Evolved 4 slots: Propulsion x2, Utility x2 7447 | -8/Materials | Discovered new exit (range 12) 7515 | -8/Materials | Met 7R-MNS 7535 | -8/Materials | Discovered new exit (range 9) 7565 | -8/Materials | Entered Factory 7565 | -7/Factory | Evolved 2 slots: Utility x1, Weapon x1 7566 | -7/Factory | Caught up to 7R-MNS 7569 | -7/Factory | Attached Flightbrick, gained temporary slots: Utility x3 7571 | -7/Factory | Attached Rainbow Chip, gained temporary slots: Power, Propulsion, Utility, Weapon 8096 | -7/Factory | Build established: Bomber 10316 | -7/Factory | Build established: Gunner 11101 | -7/Factory | Discovered new exit (range 15) 11242 | -7/Factory | Entered another Factory area 11242 | -6/Factory | Evolved 2 slots: Utility x2 11243 | -6/Factory | Caught up to 7R-MNS 12125 | -6/Factory | Garrison activated, responded to threat 12212 | -6/Factory | Lost 3 parts (1u2w) 12457 | -6/Factory | Build established: Mutant 12529 | -6/Factory | Lost 8 parts (1p1n3u3w) 12663 | -6/Factory | Discovered new exit (range 10) 12725 | -6/Factory | Entered another Factory area 12725 | -5/Factory | Evolved 2 slots: Power x1, Propulsion x1 12726 | -5/Factory | Caught up to 7R-MNS 12759 | -5/Factory | Spotted B-75 Beast 13047 | -5/Factory | Build established: Scavenger-Gunner 13529 | -5/Factory | 7R-MNS lamented failing the tripod run 13592 | -5/Factory | Destroyed 13 combat bots 13639 | -5/Factory | Lost 18 parts (3p6n5u4w) 13659 | -5/Factory | Sucked down chute 13659 | -5/Factory | Entered Waste 13668 | -5/Waste | Spotted C-40 Crusher 13670 | -5/Waste | Spotted C-40 Crusher 13674 | -5/Waste | EMP discharged 13683 | -5/Waste | Crushed by Compactor (1 part destroyed, 1 dropped) 13691 | -5/Waste | Spotted C-40 Crusher 13716 | -5/Waste | Spotted C-40 Crusher 13741 | -5/Waste | Spotted C-40 Crusher 13742 | -5/Waste | Spotted C-40 Crusher 13757 | -5/Waste | Discovered new exit (range 10) 13769 | -5/Waste | Entered Factory 13840 | -5/Factory | Destroyed 7 combat bots 13870 | -5/Factory | Lost 4 parts (1n1u2w) 13888 | -5/Factory | Core integrity fell below 50% 13981 | -5/Factory | Lost 9 parts (1p2n3u3w) 13981 | -5/Factory | Core integrity fell below 20% 13989 | -5/Factory | System corruption reached 10% 14013 | -5/Factory | Destroyed by P-70 Sage with Tesla Rifle Last Messages --------------- 13923_ RZ0QOY9KPF GO QKQ1OCT3MCKQU&G35XLAWK&Z2 13931_ Falx destroyed. 13935_ K-01 Serf cleans the Pressure Siphon. 13948_ Carbon-fiber Leg destroyed. 13950_ HVMKEOX CN# BL: RN4LX7TA7C>KNX XP2UFUMJ 13950_ Neutrino Core destroyed. 13972_ Construction Platform disabled. 13981_ Acquired Spear. 13982_ Acquired Neutrino Core. 13985_ System corrupted: Heat flow error (+133). 13986_ Acquired Neutrino Core. 13987_ Power Conduit explodes. 13994_ Acquired Neutrino Core. 13997_ U-05 Engineer lays Concrete. 14006_ System corrupted: Energy discharge (-106). 14006_ U-05 Engineer lays Concrete. 14007_ Fabricator disabled. 14008_ U-05 Engineer lays Concrete. Map ----- +----------------------------------------------------+ | +??????????????????????????????????????????????? | | ###??????????????????????????????????????????????? | | ?????????????????????????????????????????????????? | | ?????????????????????????????????????????????????? | | ?????????????????????????????????????????????????? | | ?????????????????????????????????????????????????? | | ???????????? ????????????????????????????????? | | ???????? ??" ???????????????????????????????? | | ??????? """ ![???????????????????????????????? | | ??????# """ ! #??????????????????????????????? | | ??????# ???????????????????????????????? | | ####+## ????????????????????????????????? | | #????????????????????????????????? | | #?????????????? ? "?????????????? | | """"""" #???????????#?# "?????????????? | | """"""" #??????????? ??????????????? | | """"""" ####??????? ???????????????? | | """""" +??????? ?????????????????? | | #??????? #??????????????????? | | ######## #??????????????????? | | #??????????????????? | | ** #??????????????????? | | p * "" #??????????????????? | | " u """ #??????????????????? | | F" #??????????????????? | | "" @"" #??????????????????? | | #??????????????????? | | """ u != +??????????????????? | | != #??????????????????? | | """" #??????????????????? | | ### ? #??????????????????? | | ??# ""??? ??????????????????? | | ??# ??? ?????????????????? | | ??# ????? ????????????????? | | ??## ##??????# ???????????????? | | ???? ????????? ??????????????? | | ???? ?????????## ?????????????? | | ???????????????? ??????????????? | | ?????????????????? ????????????????? | | ????????????????????? ####???????????????????? | | ??????????????????????? ???????????????????????? | | ?????????????????????????????????????????????????? | | ?????????????????????????????????????????????????? | | ?????????????????????????????????????????????????? | | ?????????????????????????????????????????????????? | | ?????????????????????????????????????????????????? | | ?????????????????????????????????????????????????? | | ?????????????????????????????????????????????????? | | ?????????????????????????????????????????????????? | | ?????????????????????????????????????????????????? | +----------------------------------------------------+ Best States ------------- Heat Dissipation 78 Energy Generation 33 Energy Capacity 530 Matter Stores 300 Matter Capacity 300 Sight Range 16 Robot Scan Range 14 Terrain Scan Density 10 Armor Coverage 600 Resistance: KI 30 Core Shielding 30 Power Shielding 33 Phase Shifting 5 Evasion (%) 55 Targeting Accuracy 14 Core Analysis 6 Recoil Reduction 4 Matter Filtering 30 Offensive Hacking 10 Defensive Hacking 11 Item Schematics ----------------- Mak. System Restoration Module | -7/Factory | Scanalyzed Hrd. Heavy Armor Plating | -7/Factory | Scanalyzed Robot Schematics ------------------ None Fabricated ------------ Nothing Alien Tech Used ----------------- None Achievements -------------- None Challenges ------------ None Game ------ Seed HybridRagnarokLog Manual? 0 Play Time 01:27:18 Cumulative 79.6 hours Start 2024.04.18 @ 21:24:19 End 2024.04.18 @ 22:57:00 Sessions 1 Manual Loads 0 Difficulty Rogue Special Mode None Game No. 98 Rogue 98 Adventurer 0 Explorer 0 Win Type - Total 0 Types 0/0/0/0/0/0/0/0/0 Lore% 20 Gallery% 45 Achievement% 30 Wizard Run 0 Options --------- Layout 1 ASCII 0 Keyboard 1 Movement Vi Keybinds 0 Fullscreen 1 Font 24/Smallcaps Map View 50x35 Zoom Use 0% Tactical HUD 1 Map Filters NONE Filters NONE Steam 1 RUN: 29d6bd64-b678-4d47-b27c-b4f4095b2a60